Workbook

Sheet Instructions
A1: HOW TO USE THIS INLET SPACING WORKSHEET
A3: PURPOSE
A4: This spreadsheet analyzes gutter flow and inlet interception using methods prescribed in the
A5: INDOT Design Manual, Sections 203.4. It is intended to simplify the task of placing
A6: curb inlets on grade.
A8: HOW TO ENTER DATA
A9: There are a wide variety of variables what affect the performance of an inlet on grade.
A10: This spreadsheet uses terminology and variable names which are mostly consistent with
A11: the Design Manual. Thus, before using this spreadsheet it is recommended that the user
A12: review and be familiar with the Design Manual on computation methods, clogging, etc.
A14: Important Note: This spread is intended to model only one line of inlets extending from a
A15: high point on the roadway profile to a sag point or other form of outlet, along one side of
A16: the roadway. Thus, there could be several copies of this spreadsheet for a single project.
A17: One idea for keeping the spreadsheets organized would be to rename each file to reflect
A18: the inlet numbers it contains.
A22: There are three areas where data input is allowed in this spreadsheet:
A24: 1.) | B24: The first is at the top of the "Computations" worksheet, where the project data,
B25: designer name, dates, etc. are filled out.
B27: Most of the data in this section is self-explanatory, but there are a few items to
B28: note:
B30: The "Side" data entry should indicate which side of the road the line of inlets is on.
B31: There is no set list of choices for this entry, but normally this would be something
B32: like "left," "right," or "median."
B34: The rainfall data entry should be taken from the online NOAA Precipitation
B35: Frequency Data Server and the data should reflect rainfall intensities for the
B36: project location.
A38: 2.) | B38: The second is on the "Computations" tab of this spreadsheet inside the box with
B39: the bold red "Data Entry Section" header.
B41: Each line in this section corresponds to a single inlet.
B42: Inlets must be entered in order from upstream to downstream.
B44: The data entry in this section has four parts:
B46: a.) The first two columns are the inlet number and station.
B48: b.) The second section is the "On-Site Area" data which is used to compute the
B49: roadway and adjacent area draining to the inlet, including sidewalks, etc. that
B50: may drain towards the curbs. The drainage area is computed based on the
B51: stationing between inlets and the average width of the area draining to the
B52: gutters.
B54: If no other data is entered, the time of concentration is assumed to be 5 minutes.
B56: c.) The third section is the "Off-Site Area" which allows data entry for inflows from
B57: parking lots, yards, etc. that are outside of the project limits. This part may be left
B58: blank if no off-site areas drain toward the roadway.
B60: The area, C value and time of concentration should be detemined from outside
B61: computations.
B63: If a time of concentration of greater than 5 minutes is entered in this section, the
B64: discharge is computed by computing the "sum CA" for the on- and off-site areas
B65: and then applying a rainfall intensity determined from the off-site time of
B66: concentration. It should be noted that this time of concentration is not transferred
B67: to the next inlet downstream. If there is no off-site inflow to the next inlet, the
B68: time of concenration will be 5 minutes. Otherwise, the it will be based on the
B69: time of concenration of the off-site flows at that inlet. The discharge at the inlet
B70: will be computed based on the Rational Method for that time of concentraton
B71: plus the upstream bypass flow which is assumed to be independent of time.
B73: d.) The fourth section of this section is the data for the roadway cross section,
B74: slope and inlet type. The inlet type should be selected from the drop-down list
B75: that appears for that data entry column.
A77: 3.) | B77: The third data entry area is the "Remarks" column on the worksheet tab called
B78: "INDOT Table."
B80: The "INDOT Table" tab contains the pre-defined design form provided in the IDM.
B81: The values in this table are filled in automatically as the data is filled in on the
B82: Computations worksheet. Thus, once the data has been entered, the user would
B83: need only to fill in any needed comments.
A86: RESULTS
A87: Once the design data has been filled into the first two data entry area describe above, the
A88: spreadsheet will automatically complete the gutter flow and inlet computations. The results
A89: of these computations are shown in the box called "Computation Section," just to the right
A90: of the data entry area.
A93: SECRET TRICKS
A94: What if my line of inlets has more than 20 in it?
A96: Well, maybe you will want to take some aspirin do deal with the headache that the roadway
A97: design project is creating for you, but otherwise, here is the recommended method for
A98: dealing with this:
A100: First, you don't need to modify the spreadsheet. Rather, you can just start another one
A101: (spreadsheet 2) that starts with the next inlet after the last one in the first spreadsheet
A102: (i.e. - number 1). To do this, you would take the station of the last inlet in spreadsheet1
A103: and enter it into the "High point" data entry cell in spreadsheet 2. You would also take the
A104: computed runby from the last inlet in spreadsheet 1 and enter it into cell AH16 in
A105: spreadsheet 2. The discharge computation for the first inlet in spreadsheet 2 will grab that
A106: value and compute the correct discharge.

Sheet Computations
A1: DATA INPUT AND COMPUTATIONS PAGE | F1: (Table for INDOT submittal is on the following sheet)
B3: Des Number: | G3: Design Frequency: | H3: 100 | I3: years | K3: Gutter n-value: | L3: 0.013 | N3: Computed by:
B4: Project: | K4: (See Design Manual, | N4: Date:
B5: Location: | G5: Enter Rainfall | H5: Duration | I5: Intensity | K5: Figure 203-4C)
G6: from NOAA: | H6: (min) | I6: (in/hr) | N6: Checked by:
B7: Station of High Pt: | H7: 5 | I7: 7.33 | N7: Date:
B8: Station of Low Pt: | H8: 10 | I8: 5.66
B9: Side: | H9: 15 | I9: 4.76 | N9: Sheet | O9: 1 | P9: of | Q9: 1
H10: 30 | I10: 3.3
A11: DATA ENTRY SECTION: | P11: COMPUTATION SECTION: | U11: (Do not enter data in this area) | AK11: Computations for frontal and side flow
D12: On-Site Area | F12: Off-Site Area | I12: Slope of | J12: Pavement | K12: Gutter | Y12: Splash-
D13: Average | H13: Time of | I13: P.G. | J13: Cross | K13: Cross | L13: Gutter | M13: Allowable | P13: Inlet | U13: Req'd | W13: Grate | X13: Grate | Y13: Over | Z13: Flow | AA13: Frontal | AB13: Frontal | AC13: Frontal | AE13: Side Flow | AF13: Side Flow | AG13: Total | AN13: Frontal | AO13: Side
B14: Inlet | D14: Width | E14: Rational | F14: DA | G14: Rational | H14: Conc. | I14: (SL) | J14: Slope (Sx) | K14: Slope (Sw) | L14: Width (w) | M14: Spread | N14: Inlet | P14: Drainage | R14: Intensity | S14: Q | T14: Spread | U14: Convey- | V14: Depth | W14: Width | X14: Length | Y14: Velocity | Z14: Velocity | AA14: Flow | AB14: Efficiency | AC14: Flow In | AD14: Side Flow | AE14: Efficiency | AF14: In | AG14: Flow In | AH14: Runby | AN14: Flow Area | AO14: Flow Area
B15: Number | C15: Station | D15: (feet) | E15: C | F15: (acres) | G15: C | H15: (min) | I15: (ft/ft) | J15: (ft/ft) | K15: (ft/ft) | L15: (feet) | M15: (feet) | N15: Type | P15: Area (ac) | Q15: CA | R15: (in/hr) | S15: (cfs) | T15: (feet) | U15: ance (K) | V15: (feet) | W15: (feet) | X15: (feet) | Y15: (fps) | Z15: (fps) | AA15: (cfs) | AB15: (Rf) | AC15: (cfs) | AD15: (cfs) | AE15: (Rs) | AF15: (cfs) | AG15: (cfs) | AH15: (cfs) | AK15: Sw / Sx | AL15: T/W | AM15: Eo | AN15: (sf) | AO15: (sf)
A17: 1 | B17: 224 | C17: 3110 | F17: 0.0597 | G17: 0.8 | H17: 5 | I17: 0.007 | J17: 0.02 | K17: 0.02 | L17: 2 | M17: 6 | N17: 15 | P17: =ABS(C17-C7)*D17/43560+F17 -> 0.0597 | Q17: =ABS(C17-C7)*D17/43560*E17+F17*G17 -> 0.04776 | R17: =IF(F17>0,linterp(MAX(5,H17),$H$7:$H$10,$I$7:$I$10,4),$I$7) -> 7.33 | S17: =Q17*R17+AH16 -> 0.3500808 | T17: =MIN(V17/K17,L17)+MAX(0,(V17-(K17*L17))/J17) -> 4.810791016 | U17: =S17/I17^0.5 -> 4.184265877 | V17: =GutDepth(J17,K17,L17,$L$3,U17) -> 0.09621582031 | W17: =VLOOKUP(N17,'Lookup Tables'!$B$8:$E$17,2) -> 1.7 | X17: =VLOOKUP(N17,'Lookup Tables'!$B$8:$E$17,3) -> 3.79 | Y17: =VLOOKUP(N17,'Lookup Tables'!$B$8:$E$17,4) -> 8.58 | Z17: =S17/(AN17+AO17) -> 1.512639058 | AA17: =S17*AM17 -> 0.2407820001 | AB17: =MIN(1,1-0.09*(Z17-Y17)) -> 1 | AC17: =AA17*AB17 -> 0.2407820001 | AD17: =S17-AA17 -> 0.1092987999 | AE17: =J17*X17^2.3/(J17*X17^2.3+0.15*Z17^1.8) -> 0.5755662229 | AF17: =AE17*AD17 -> 0.0629086974 | AG17: =AC17+AF17 -> 0.3036906975 | AH17: =S17-AG17 -> 0.04639010246 | AK17: =K17/J17 -> 1 | AL17: =T17/W17 -> 2.829877068 | AM17: =1/(1+AK17/((1+AK17/(AL17-1))^2.67-1)) -> 0.6877897907 | AN17: =((V17+MAX(0,V17-(K17*W17)))/2)*MIN(V17/K17,W17) -> 0.1346668945 | AO17: =MAX(0,0.5*(T17-W17)*(V17-(K17*W17))) -> 0.09677020743
A18: 2 | P18: =ABS(C18-C17)*D18/43560+F18 -> 0 | Q18: =ABS(C18-C17)*D18/43560*E18+F18*G18 -> 0 | R18: =IF(F18>0,linterp(MAX(5,H18),$H$7:$H$10,$I$7:$I$10,4),$I$7) -> 7.33 | S18: =Q18*R18+AH17 -> 0.04639010246 | T18: =MIN(V18/K18,L18)+MAX(0,(V18-(K18*L18))/J18) ->  | U18: =S18/I18^0.5 ->  | V18: =GutDepth(J18,K18,L18,$L$3,U18) ->  | W18: =VLOOKUP(N18,'Lookup Tables'!$B$8:$E$17,2) ->  | X18: =VLOOKUP(N18,'Lookup Tables'!$B$8:$E$17,3) ->  | Y18: =VLOOKUP(N18,'Lookup Tables'!$B$8:$E$17,4) ->  | Z18: =S18/(AN18+AO18) ->  | AA18: =S18*AM18 ->  | AB18: =MIN(1,1-0.09*(Z18-Y18)) ->  | AC18: =AA18*AB18 ->  | AD18: =S18-AA18 ->  | AE18: =J18*X18^2.3/(J18*X18^2.3+0.15*Z18^1.8) ->  | AF18: =AE18*AD18 ->  | AG18: =AC18+AF18 ->  | AH18: =S18-AG18 ->  | AK18: =K18/J18 ->  | AL18: =T18/W18 ->  | AM18: =1/(1+AK18/((1+AK18/(AL18-1))^2.67-1)) ->  | AO18: =MAX(0,0.5*(T18-W18)*(V18-(K18*W18))) -> 
A19: 3 | P19: =ABS(C19-C18)*D19/43560+F19 -> 0 | Q19: =ABS(C19-C18)*D19/43560*E19+F19*G19 -> 0 | R19: 7.33 | W19: =VLOOKUP(N19,'Lookup Tables'!$B$8:$E$17,2) ->  | X19: =VLOOKUP(N19,'Lookup Tables'!$B$8:$E$17,3) ->  | Y19: =VLOOKUP(N19,'Lookup Tables'!$B$8:$E$17,4) -> 
A20: 4 | P20: 0 | Q20: 0 | R20: 7.33 | W20: =VLOOKUP(N20,'Lookup Tables'!$B$8:$E$17,2) ->  | X20: =VLOOKUP(N20,'Lookup Tables'!$B$8:$E$17,3) ->  | Y20: =VLOOKUP(N20,'Lookup Tables'!$B$8:$E$17,4) -> 
A21: 5 | P21: 0 | Q21: 0 | R21: 7.33 | W21: =VLOOKUP(N21,'Lookup Tables'!$B$8:$E$17,2) ->  | X21: =VLOOKUP(N21,'Lookup Tables'!$B$8:$E$17,3) ->  | Y21: =VLOOKUP(N21,'Lookup Tables'!$B$8:$E$17,4) -> 
A22: 6 | P22: 0 | Q22: 0 | R22: 7.33 | W22: =VLOOKUP(N22,'Lookup Tables'!$B$8:$E$17,2) ->  | X22: =VLOOKUP(N22,'Lookup Tables'!$B$8:$E$17,3) ->  | Y22: =VLOOKUP(N22,'Lookup Tables'!$B$8:$E$17,4) -> 
A23: 7 | P23: 0 | Q23: 0 | R23: 7.33 | W23: =VLOOKUP(N23,'Lookup Tables'!$B$8:$E$17,2) ->  | X23: =VLOOKUP(N23,'Lookup Tables'!$B$8:$E$17,3) ->  | Y23: =VLOOKUP(N23,'Lookup Tables'!$B$8:$E$17,4) -> 
A24: 8 | P24: 0 | Q24: 0 | R24: 7.33 | W24: =VLOOKUP(N24,'Lookup Tables'!$B$8:$E$17,2) ->  | X24: =VLOOKUP(N24,'Lookup Tables'!$B$8:$E$17,3) ->  | Y24: =VLOOKUP(N24,'Lookup Tables'!$B$8:$E$17,4) -> 
A25: 9 | P25: 0 | Q25: 0 | R25: 7.33 | W25: =VLOOKUP(N25,'Lookup Tables'!$B$8:$E$17,2) ->  | X25: =VLOOKUP(N25,'Lookup Tables'!$B$8:$E$17,3) ->  | Y25: =VLOOKUP(N25,'Lookup Tables'!$B$8:$E$17,4) -> 
A26: 10 | P26: 0 | Q26: 0 | R26: 7.33 | W26: =VLOOKUP(N26,'Lookup Tables'!$B$8:$E$17,2) ->  | X26: =VLOOKUP(N26,'Lookup Tables'!$B$8:$E$17,3) ->  | Y26: =VLOOKUP(N26,'Lookup Tables'!$B$8:$E$17,4) -> 
A27: 11 | P27: 0 | Q27: 0 | R27: 7.33 | W27: =VLOOKUP(N27,'Lookup Tables'!$B$8:$E$17,2) ->  | X27: =VLOOKUP(N27,'Lookup Tables'!$B$8:$E$17,3) ->  | Y27: =VLOOKUP(N27,'Lookup Tables'!$B$8:$E$17,4) -> 
A28: 12 | P28: 0 | Q28: 0 | R28: 7.33 | W28: =VLOOKUP(N28,'Lookup Tables'!$B$8:$E$17,2) ->  | X28: =VLOOKUP(N28,'Lookup Tables'!$B$8:$E$17,3) ->  | Y28: =VLOOKUP(N28,'Lookup Tables'!$B$8:$E$17,4) -> 
A29: 13 | P29: 0 | Q29: 0 | R29: 7.33 | W29: =VLOOKUP(N29,'Lookup Tables'!$B$8:$E$17,2) ->  | X29: =VLOOKUP(N29,'Lookup Tables'!$B$8:$E$17,3) ->  | Y29: =VLOOKUP(N29,'Lookup Tables'!$B$8:$E$17,4) -> 
A30: 14 | P30: 0 | Q30: 0 | R30: 7.33 | W30: =VLOOKUP(N30,'Lookup Tables'!$B$8:$E$17,2) ->  | X30: =VLOOKUP(N30,'Lookup Tables'!$B$8:$E$17,3) ->  | Y30: =VLOOKUP(N30,'Lookup Tables'!$B$8:$E$17,4) -> 
A31: 15 | P31: 0 | Q31: 0 | R31: 7.33 | W31: =VLOOKUP(N31,'Lookup Tables'!$B$8:$E$17,2) ->  | X31: =VLOOKUP(N31,'Lookup Tables'!$B$8:$E$17,3) ->  | Y31: =VLOOKUP(N31,'Lookup Tables'!$B$8:$E$17,4) -> 
A32: 16 | P32: 0 | Q32: 0 | R32: 7.33 | W32: =VLOOKUP(N32,'Lookup Tables'!$B$8:$E$17,2) ->  | X32: =VLOOKUP(N32,'Lookup Tables'!$B$8:$E$17,3) ->  | Y32: =VLOOKUP(N32,'Lookup Tables'!$B$8:$E$17,4) -> 
A33: 17 | P33: 0 | Q33: 0 | R33: 7.33 | W33: =VLOOKUP(N33,'Lookup Tables'!$B$8:$E$17,2) ->  | X33: =VLOOKUP(N33,'Lookup Tables'!$B$8:$E$17,3) ->  | Y33: =VLOOKUP(N33,'Lookup Tables'!$B$8:$E$17,4) -> 
A34: 18 | P34: 0 | Q34: 0 | R34: 7.33 | W34: =VLOOKUP(N34,'Lookup Tables'!$B$8:$E$17,2) ->  | X34: =VLOOKUP(N34,'Lookup Tables'!$B$8:$E$17,3) ->  | Y34: =VLOOKUP(N34,'Lookup Tables'!$B$8:$E$17,4) -> 
A35: 19 | P35: 0 | Q35: 0 | R35: 7.33 | W35: =VLOOKUP(N35,'Lookup Tables'!$B$8:$E$17,2) ->  | X35: =VLOOKUP(N35,'Lookup Tables'!$B$8:$E$17,3) ->  | Y35: =VLOOKUP(N35,'Lookup Tables'!$B$8:$E$17,4) ->  | AK35: =K35/J35 -> 
A36: 20 | P36: 0 | Q36: 0 | R36: 7.33 | W36: =VLOOKUP(N36,'Lookup Tables'!$B$8:$E$17,2) ->  | X36: =VLOOKUP(N36,'Lookup Tables'!$B$8:$E$17,3) ->  | Y36: =VLOOKUP(N36,'Lookup Tables'!$B$8:$E$17,4) ->  | AL36: =T36/W36 ->  | AM36: =1/(1+AK36/((1+AK36/(AL36-1))^2.67-1)) -> 
A38: (Do not enter more than 20 inlets)

Sheet INDOT Table
A1: PROJECT: | C1: =Computations!C4 -> 0 | G1: COMPUTED BY: | I1: =Computations!O3 -> 0 | L1: CHECKED BY: | N1: =Computations!O6 -> 0
A2: From: | B2: =Computations!C7 -> 0 | H2: DATE: | I2: =Computations!O4 -> 00:00:00 | M2: DATE: | N2: =Computations!O7 -> 00:00:00 | Q2: Sheet | R2: =Computations!O9 -> 1
A3: To: | B3: =Computations!C8 -> 0 | Q3: of | R3: =Computations!Q9 -> 1
A5: LOCATION | C5: GUTTER DISCHARGE | H5: GUTTER DISCHARGE | P5: INLET DISCHARGE
C6: Design Frequency: | F6: =Computations!H3 -> 100 | G6: yrs. | H6: Allowable Spread: | K6: =Computations!M17 -> 6 | L6: feet
D8: Run- | E8: Time | F8: Rain | J8: Prev. | K8: Total
C9: Drain | D9: off | E9: of | F9: Inten- | I9: Cross | J9: Run- | K9: Gutt. | L9: Depth | M9: Gutt. | P9: Inlet | Q9: Inter- | R9: Run-
C10: Area | D10: Coef. | E10: Conc. | F10: sity | G10: Q | H10: Grade | I10: Slope | J10: by | K10: Flow | L10: d | M10: Width | N10: Sprd. | P10: Type | Q10: cept | R10: by | S10: Remarks
A11: Inlet | C11: A | D11: C | E11: Tc | F11: I | G11: CIA | H11: So | I11: Sx | L11: T/W | M11: W | N11: T | O11: W/T | Q11: Qi | R11: Qr
A12: No. | B12: Station | C12: (ac.) | E12: (min.) | F12: (in/hr) | G12: (cfs) | H12: (ft/ft) | I12: (ft/ft) | J12: (cfs) | K12: (cfs) | L12: (ft) | M12: (ft) | N12: (ft) | Q12: (cfs) | R12: (cfs)
A13: 1 | B13: 2 | C13: 3 | D13: 4 | E13: 5 | F13: 6 | G13: 7 | H13: 8 | I13: 9 | J13: 10 | K13: 11 | L13: 12 | M13: 13 | N13: 14 | O13: 15 | P13: 16 | Q13: 17 | R13: 18 | S13: 19
A14: =IF(ISBLANK(Computations!B17)," ",Computations!B17) -> 224 | B14: =IF(ISBLANK(Computations!C17)," ",Computations!C17) -> 3110 | C14: =IF(ISBLANK(Computations!B17)," ",Computations!P17) -> 0.0597 | D14: =IF(Computations!P17<=0," ",Computations!Q17/Computations!P17) -> 0.8 | E14: =IF(ISBLANK(Computations!B17)," ",MAX(5,Computations!H17)) -> 5 | F14: =IF(ISBLANK(Computations!B17)," ",Computations!R17) -> 7.33 | G14: =IF(ISBLANK(Computations!B17)," ",Computations!S17) -> 0.3500808 | H14: =IF(ISBLANK(Computations!$B17)," ",Computations!I17) -> 0.007 | I14: =IF(ISBLANK(Computations!$B17)," ",Computations!J17) -> 0.02 | J14: =IF(ISBLANK(Computations!$B17)," ",Computations!AH16) -> 0 | K14: =IF(ISBLANK(Computations!$B17)," ",Computations!AA17) -> 0.2407820001 | L14: =IF(ISBLANK(Computations!$B17)," ",Computations!V17) -> 0.09621582031 | M14: =IF(ISBLANK(Computations!$B17)," ",Computations!L17) -> 2 | N14: =IF(ISBLANK(Computations!$B17)," ",Computations!T17) -> 4.810791016 | O14: =IF(ISBLANK(Computations!$B17)," ",M14/N14) -> 0.4157320477 | P14: =IF(ISBLANK(Computations!$B17)," ",Computations!N17) -> 15 | Q14: =IF(ISBLANK(Computations!$B17)," ",Computations!AG17) -> 0.3036906975 | R14: =IF(ISBLANK(Computations!$B17)," ",Computations!AH17) -> 0.04639010246
A15: =IF(ISBLANK(Computations!B18)," ",Computations!B18) ->  | B15: =IF(ISBLANK(Computations!C18)," ",Computations!C18) ->  | C15: =IF(ISBLANK(Computations!B18)," ",Computations!P18) ->  | D15: =IF(Computations!P18<=0," ",Computations!Q18/Computations!P18) ->  | E15: =IF(ISBLANK(Computations!B18)," ",MAX(5,Computations!H18)) ->  | F15: =IF(ISBLANK(Computations!B18)," ",Computations!R18) ->  | G15: =IF(ISBLANK(Computations!B18)," ",Computations!S18) ->  | H15: =IF(ISBLANK(Computations!B18)," ",Computations!I18) ->  | I15: =IF(ISBLANK(Computations!$B18)," ",Computations!J18) ->  | J15: =IF(ISBLANK(Computations!$B18)," ",Computations!AH17) ->  | K15: =IF(ISBLANK(Computations!$B18)," ",Computations!AA18) ->  | L15: =IF(ISBLANK(Computations!$B18)," ",Computations!V18) ->  | M15: =IF(ISBLANK(Computations!$B18)," ",Computations!L18) ->  | N15: =IF(ISBLANK(Computations!$B18)," ",Computations!T18) ->  | O15: =IF(ISBLANK(Computations!$B18)," ",M15/N15) ->  | P15: =IF(ISBLANK(Computations!$B18)," ",Computations!N18) ->  | Q15: =IF(ISBLANK(Computations!$B18)," ",Computations!AG18) ->  | R15: =IF(ISBLANK(Computations!$B18)," ",Computations!AH18) -> 
A16: =IF(ISBLANK(Computations!B19)," ",Computations!B19) ->  | B16: =IF(ISBLANK(Computations!C19)," ",Computations!C19) ->  | C16: =IF(ISBLANK(Computations!B19)," ",Computations!P19) ->  | D16: =IF(Computations!P19<=0," ",Computations!Q19/Computations!P19) ->  | E16: =IF(ISBLANK(Computations!B19)," ",MAX(5,Computations!H19)) ->  | F16: =IF(ISBLANK(Computations!B19)," ",Computations!R19) ->  | G16: =IF(ISBLANK(Computations!B19)," ",Computations!S19) ->  | H16: =IF(ISBLANK(Computations!B19)," ",Computations!I19) ->  | I16: =IF(ISBLANK(Computations!$B19)," ",Computations!J19) ->  | J16: =IF(ISBLANK(Computations!$B19)," ",Computations!AH18) ->  | K16: =IF(ISBLANK(Computations!$B19)," ",Computations!AA19) ->  | L16: =IF(ISBLANK(Computations!$B19)," ",Computations!V19) ->  | M16: =IF(ISBLANK(Computations!$B19)," ",Computations!L19) ->  | N16: =IF(ISBLANK(Computations!$B19)," ",Computations!T19) ->  | O16: =IF(ISBLANK(Computations!$B19)," ",M16/N16) ->  | P16: =IF(ISBLANK(Computations!$B19)," ",Computations!N19) ->  | Q16: =IF(ISBLANK(Computations!$B19)," ",Computations!AG19) ->  | R16: =IF(ISBLANK(Computations!$B19)," ",Computations!AH19) -> 
A17: =IF(ISBLANK(Computations!B20)," ",Computations!B20) ->  | B17: =IF(ISBLANK(Computations!C20)," ",Computations!C20) ->  | C17: =IF(ISBLANK(Computations!B20)," ",Computations!P20) ->  | D17: =IF(Computations!P20<=0," ",Computations!Q20/Computations!P20) ->  | E17: =IF(ISBLANK(Computations!B20)," ",MAX(5,Computations!H20)) ->  | F17: =IF(ISBLANK(Computations!B20)," ",Computations!R20) ->  | G17: =IF(ISBLANK(Computations!B20)," ",Computations!S20) ->  | H17: =IF(ISBLANK(Computations!B20)," ",Computations!I20) ->  | I17: =IF(ISBLANK(Computations!$B20)," ",Computations!J20) ->  | J17: =IF(ISBLANK(Computations!$B20)," ",Computations!AH19) ->  | K17: =IF(ISBLANK(Computations!$B20)," ",Computations!AA20) ->  | L17: =IF(ISBLANK(Computations!$B20)," ",Computations!V20) ->  | M17: =IF(ISBLANK(Computations!$B20)," ",Computations!L20) ->  | N17: =IF(ISBLANK(Computations!$B20)," ",Computations!T20) ->  | O17: =IF(ISBLANK(Computations!$B20)," ",M17/N17) ->  | P17: =IF(ISBLANK(Computations!$B20)," ",Computations!N20) ->  | Q17: =IF(ISBLANK(Computations!$B20)," ",Computations!AG20) ->  | R17: =IF(ISBLANK(Computations!$B20)," ",Computations!AH20) -> 
A18: =IF(ISBLANK(Computations!B21)," ",Computations!B21) ->  | B18: =IF(ISBLANK(Computations!C21)," ",Computations!C21) ->  | C18: =IF(ISBLANK(Computations!B21)," ",Computations!P21) ->  | D18: =IF(Computations!P21<=0," ",Computations!Q21/Computations!P21) ->  | E18: =IF(ISBLANK(Computations!B21)," ",MAX(5,Computations!H21)) ->  | F18: =IF(ISBLANK(Computations!B21)," ",Computations!R21) ->  | G18: =IF(ISBLANK(Computations!B21)," ",Computations!S21) ->  | H18: =IF(ISBLANK(Computations!B21)," ",Computations!I21) ->  | I18: =IF(ISBLANK(Computations!$B21)," ",Computations!J21) ->  | J18: =IF(ISBLANK(Computations!$B21)," ",Computations!AH20) ->  | K18: =IF(ISBLANK(Computations!$B21)," ",Computations!AA21) ->  | L18: =IF(ISBLANK(Computations!$B21)," ",Computations!V21) ->  | M18: =IF(ISBLANK(Computations!$B21)," ",Computations!L21) ->  | N18: =IF(ISBLANK(Computations!$B21)," ",Computations!T21) ->  | O18: =IF(ISBLANK(Computations!$B21)," ",M18/N18) ->  | P18: =IF(ISBLANK(Computations!$B21)," ",Computations!N21) ->  | Q18: =IF(ISBLANK(Computations!$B21)," ",Computations!AG21) ->  | R18: =IF(ISBLANK(Computations!$B21)," ",Computations!AH21) -> 
A19: =IF(ISBLANK(Computations!B22)," ",Computations!B22) ->  | B19: =IF(ISBLANK(Computations!C22)," ",Computations!C22) ->  | C19: =IF(ISBLANK(Computations!B22)," ",Computations!P22) ->  | D19: =IF(Computations!P22<=0," ",Computations!Q22/Computations!P22) ->  | E19: =IF(ISBLANK(Computations!B22)," ",MAX(5,Computations!H22)) ->  | F19: =IF(ISBLANK(Computations!B22)," ",Computations!R22) ->  | G19: =IF(ISBLANK(Computations!B22)," ",Computations!S22) ->  | H19: =IF(ISBLANK(Computations!B22)," ",Computations!I22) ->  | I19: =IF(ISBLANK(Computations!$B22)," ",Computations!J22) ->  | J19: =IF(ISBLANK(Computations!$B22)," ",Computations!AH21) ->  | K19: =IF(ISBLANK(Computations!$B22)," ",Computations!AA22) ->  | L19: =IF(ISBLANK(Computations!$B22)," ",Computations!V22) ->  | M19: =IF(ISBLANK(Computations!$B22)," ",Computations!L22) ->  | N19: =IF(ISBLANK(Computations!$B22)," ",Computations!T22) ->  | O19: =IF(ISBLANK(Computations!$B22)," ",M19/N19) ->  | P19: =IF(ISBLANK(Computations!$B22)," ",Computations!N22) ->  | Q19: =IF(ISBLANK(Computations!$B22)," ",Computations!AG22) ->  | R19: =IF(ISBLANK(Computations!$B22)," ",Computations!AH22) -> 
A20: =IF(ISBLANK(Computations!B23)," ",Computations!B23) ->  | B20: =IF(ISBLANK(Computations!C23)," ",Computations!C23) ->  | C20: =IF(ISBLANK(Computations!B23)," ",Computations!P23) ->  | D20: =IF(Computations!P23<=0," ",Computations!Q23/Computations!P23) ->  | E20: =IF(ISBLANK(Computations!B23)," ",MAX(5,Computations!H23)) ->  | F20: =IF(ISBLANK(Computations!B23)," ",Computations!R23) ->  | G20: =IF(ISBLANK(Computations!B23)," ",Computations!S23) ->  | H20: =IF(ISBLANK(Computations!B23)," ",Computations!I23) ->  | I20: =IF(ISBLANK(Computations!$B23)," ",Computations!J23) ->  | J20: =IF(ISBLANK(Computations!$B23)," ",Computations!AH22) ->  | K20: =IF(ISBLANK(Computations!$B23)," ",Computations!AA23) ->  | L20: =IF(ISBLANK(Computations!$B23)," ",Computations!V23) ->  | M20: =IF(ISBLANK(Computations!$B23)," ",Computations!L23) ->  | N20: =IF(ISBLANK(Computations!$B23)," ",Computations!T23) ->  | O20: =IF(ISBLANK(Computations!$B23)," ",M20/N20) ->  | P20: =IF(ISBLANK(Computations!$B23)," ",Computations!N23) ->  | Q20: =IF(ISBLANK(Computations!$B23)," ",Computations!AG23) ->  | R20: =IF(ISBLANK(Computations!$B23)," ",Computations!AH23) -> 
A21: =IF(ISBLANK(Computations!B24)," ",Computations!B24) ->  | B21: =IF(ISBLANK(Computations!C24)," ",Computations!C24) ->  | C21: =IF(ISBLANK(Computations!B24)," ",Computations!P24) ->  | D21: =IF(Computations!P24<=0," ",Computations!Q24/Computations!P24) ->  | E21: =IF(ISBLANK(Computations!B24)," ",MAX(5,Computations!H24)) ->  | F21: =IF(ISBLANK(Computations!B24)," ",Computations!R24) ->  | G21: =IF(ISBLANK(Computations!B24)," ",Computations!S24) ->  | H21: =IF(ISBLANK(Computations!B24)," ",Computations!I24) ->  | I21: =IF(ISBLANK(Computations!$B24)," ",Computations!J24) ->  | J21: =IF(ISBLANK(Computations!$B24)," ",Computations!AH23) ->  | K21: =IF(ISBLANK(Computations!$B24)," ",Computations!AA24) ->  | L21: =IF(ISBLANK(Computations!$B24)," ",Computations!V24) ->  | M21: =IF(ISBLANK(Computations!$B24)," ",Computations!L24) ->  | N21: =IF(ISBLANK(Computations!$B24)," ",Computations!T24) ->  | O21: =IF(ISBLANK(Computations!$B24)," ",M21/N21) ->  | P21: =IF(ISBLANK(Computations!$B24)," ",Computations!N24) ->  | Q21: =IF(ISBLANK(Computations!$B24)," ",Computations!AG24) ->  | R21: =IF(ISBLANK(Computations!$B24)," ",Computations!AH24) -> 
A22: =IF(ISBLANK(Computations!B25)," ",Computations!B25) ->  | B22: =IF(ISBLANK(Computations!C25)," ",Computations!C25) ->  | C22: =IF(ISBLANK(Computations!B25)," ",Computations!P25) ->  | D22: =IF(Computations!P25<=0," ",Computations!Q25/Computations!P25) ->  | E22: =IF(ISBLANK(Computations!B25)," ",MAX(5,Computations!H25)) ->  | F22: =IF(ISBLANK(Computations!B25)," ",Computations!R25) ->  | G22: =IF(ISBLANK(Computations!B25)," ",Computations!S25) ->  | H22: =IF(ISBLANK(Computations!B25)," ",Computations!I25) ->  | I22: =IF(ISBLANK(Computations!$B25)," ",Computations!J25) ->  | J22: =IF(ISBLANK(Computations!$B25)," ",Computations!AH24) ->  | K22: =IF(ISBLANK(Computations!$B25)," ",Computations!AA25) ->  | L22: =IF(ISBLANK(Computations!$B25)," ",Computations!V25) ->  | M22: =IF(ISBLANK(Computations!$B25)," ",Computations!L25) ->  | N22: =IF(ISBLANK(Computations!$B25)," ",Computations!T25) ->  | O22: =IF(ISBLANK(Computations!$B25)," ",M22/N22) ->  | P22: =IF(ISBLANK(Computations!$B25)," ",Computations!N25) ->  | Q22: =IF(ISBLANK(Computations!$B25)," ",Computations!AG25) ->  | R22: =IF(ISBLANK(Computations!$B25)," ",Computations!AH25) -> 
A23: =IF(ISBLANK(Computations!B26)," ",Computations!B26) ->  | B23: =IF(ISBLANK(Computations!C26)," ",Computations!C26) ->  | C23: =IF(ISBLANK(Computations!B26)," ",Computations!P26) ->  | D23: =IF(Computations!P26<=0," ",Computations!Q26/Computations!P26) ->  | E23: =IF(ISBLANK(Computations!B26)," ",MAX(5,Computations!H26)) ->  | F23: =IF(ISBLANK(Computations!B26)," ",Computations!R26) ->  | G23: =IF(ISBLANK(Computations!B26)," ",Computations!S26) ->  | H23: =IF(ISBLANK(Computations!B26)," ",Computations!I26) ->  | I23: =IF(ISBLANK(Computations!$B26)," ",Computations!J26) ->  | J23: =IF(ISBLANK(Computations!$B26)," ",Computations!AH25) ->  | K23: =IF(ISBLANK(Computations!$B26)," ",Computations!AA26) ->  | L23: =IF(ISBLANK(Computations!$B26)," ",Computations!V26) ->  | M23: =IF(ISBLANK(Computations!$B26)," ",Computations!L26) ->  | N23: =IF(ISBLANK(Computations!$B26)," ",Computations!T26) ->  | O23: =IF(ISBLANK(Computations!$B26)," ",M23/N23) ->  | P23: =IF(ISBLANK(Computations!$B26)," ",Computations!N26) ->  | Q23: =IF(ISBLANK(Computations!$B26)," ",Computations!AG26) ->  | R23: =IF(ISBLANK(Computations!$B26)," ",Computations!AH26) -> 
A24: =IF(ISBLANK(Computations!B27)," ",Computations!B27) ->  | B24: =IF(ISBLANK(Computations!C27)," ",Computations!C27) ->  | C24: =IF(ISBLANK(Computations!B27)," ",Computations!P27) ->  | D24: =IF(Computations!P27<=0," ",Computations!Q27/Computations!P27) ->  | E24: =IF(ISBLANK(Computations!B27)," ",MAX(5,Computations!H27)) ->  | F24: =IF(ISBLANK(Computations!B27)," ",Computations!R27) ->  | G24: =IF(ISBLANK(Computations!B27)," ",Computations!S27) ->  | H24: =IF(ISBLANK(Computations!B27)," ",Computations!I27) ->  | I24: =IF(ISBLANK(Computations!$B27)," ",Computations!J27) ->  | J24: =IF(ISBLANK(Computations!$B27)," ",Computations!AH26) ->  | K24: =IF(ISBLANK(Computations!$B27)," ",Computations!AA27) ->  | L24: =IF(ISBLANK(Computations!$B27)," ",Computations!V27) ->  | M24: =IF(ISBLANK(Computations!$B27)," ",Computations!L27) ->  | N24: =IF(ISBLANK(Computations!$B27)," ",Computations!T27) ->  | O24: =IF(ISBLANK(Computations!$B27)," ",M24/N24) ->  | P24: =IF(ISBLANK(Computations!$B27)," ",Computations!N27) ->  | Q24: =IF(ISBLANK(Computations!$B27)," ",Computations!AG27) ->  | R24: =IF(ISBLANK(Computations!$B27)," ",Computations!AH27) -> 
A25: =IF(ISBLANK(Computations!B28)," ",Computations!B28) ->  | B25: =IF(ISBLANK(Computations!C28)," ",Computations!C28) ->  | C25: =IF(ISBLANK(Computations!B28)," ",Computations!P28) ->  | D25: =IF(Computations!P28<=0," ",Computations!Q28/Computations!P28) ->  | E25: =IF(ISBLANK(Computations!B28)," ",MAX(5,Computations!H28)) ->  | F25: =IF(ISBLANK(Computations!B28)," ",Computations!R28) ->  | G25: =IF(ISBLANK(Computations!B28)," ",Computations!S28) ->  | H25: =IF(ISBLANK(Computations!B28)," ",Computations!I28) ->  | I25: =IF(ISBLANK(Computations!$B28)," ",Computations!J28) ->  | J25: =IF(ISBLANK(Computations!$B28)," ",Computations!AH27) ->  | K25: =IF(ISBLANK(Computations!$B28)," ",Computations!AA28) ->  | L25: =IF(ISBLANK(Computations!$B28)," ",Computations!V28) ->  | M25: =IF(ISBLANK(Computations!$B28)," ",Computations!L28) ->  | N25: =IF(ISBLANK(Computations!$B28)," ",Computations!T28) ->  | O25: =IF(ISBLANK(Computations!$B28)," ",M25/N25) ->  | P25: =IF(ISBLANK(Computations!$B28)," ",Computations!N28) ->  | Q25: =IF(ISBLANK(Computations!$B28)," ",Computations!AG28) ->  | R25: =IF(ISBLANK(Computations!$B28)," ",Computations!AH28) -> 
A26: =IF(ISBLANK(Computations!B29)," ",Computations!B29) ->  | B26: =IF(ISBLANK(Computations!C29)," ",Computations!C29) ->  | C26: =IF(ISBLANK(Computations!B29)," ",Computations!P29) ->  | D26: =IF(Computations!P29<=0," ",Computations!Q29/Computations!P29) ->  | E26: =IF(ISBLANK(Computations!B29)," ",MAX(5,Computations!H29)) ->  | F26: =IF(ISBLANK(Computations!B29)," ",Computations!R29) ->  | G26: =IF(ISBLANK(Computations!B29)," ",Computations!S29) ->  | H26: =IF(ISBLANK(Computations!B29)," ",Computations!I29) ->  | I26: =IF(ISBLANK(Computations!$B29)," ",Computations!J29) ->  | J26: =IF(ISBLANK(Computations!$B29)," ",Computations!AH28) ->  | K26: =IF(ISBLANK(Computations!$B29)," ",Computations!AA29) ->  | L26: =IF(ISBLANK(Computations!$B29)," ",Computations!V29) ->  | M26: =IF(ISBLANK(Computations!$B29)," ",Computations!L29) ->  | N26: =IF(ISBLANK(Computations!$B29)," ",Computations!T29) ->  | O26: =IF(ISBLANK(Computations!$B29)," ",M26/N26) ->  | P26: =IF(ISBLANK(Computations!$B29)," ",Computations!N29) ->  | Q26: =IF(ISBLANK(Computations!$B29)," ",Computations!AG29) ->  | R26: =IF(ISBLANK(Computations!$B29)," ",Computations!AH29) -> 
A27: =IF(ISBLANK(Computations!B30)," ",Computations!B30) ->  | B27: =IF(ISBLANK(Computations!C30)," ",Computations!C30) ->  | C27: =IF(ISBLANK(Computations!B30)," ",Computations!P30) ->  | D27: =IF(Computations!P30<=0," ",Computations!Q30/Computations!P30) ->  | E27: =IF(ISBLANK(Computations!B30)," ",MAX(5,Computations!H30)) ->  | F27: =IF(ISBLANK(Computations!B30)," ",Computations!R30) ->  | G27: =IF(ISBLANK(Computations!B30)," ",Computations!S30) ->  | H27: =IF(ISBLANK(Computations!B30)," ",Computations!I30) ->  | I27: =IF(ISBLANK(Computations!$B30)," ",Computations!J30) ->  | J27: =IF(ISBLANK(Computations!$B30)," ",Computations!AH29) ->  | K27: =IF(ISBLANK(Computations!$B30)," ",Computations!AA30) ->  | L27: =IF(ISBLANK(Computations!$B30)," ",Computations!V30) ->  | M27: =IF(ISBLANK(Computations!$B30)," ",Computations!L30) ->  | N27: =IF(ISBLANK(Computations!$B30)," ",Computations!T30) ->  | O27: =IF(ISBLANK(Computations!$B30)," ",M27/N27) ->  | P27: =IF(ISBLANK(Computations!$B30)," ",Computations!N30) ->  | Q27: =IF(ISBLANK(Computations!$B30)," ",Computations!AG30) ->  | R27: =IF(ISBLANK(Computations!$B30)," ",Computations!AH30) -> 
A28: =IF(ISBLANK(Computations!B31)," ",Computations!B31) ->  | B28: =IF(ISBLANK(Computations!C31)," ",Computations!C31) ->  | C28: =IF(ISBLANK(Computations!B31)," ",Computations!P31) ->  | D28: =IF(Computations!P31<=0," ",Computations!Q31/Computations!P31) ->  | E28: =IF(ISBLANK(Computations!B31)," ",MAX(5,Computations!H31)) ->  | F28: =IF(ISBLANK(Computations!B31)," ",Computations!R31) ->  | G28: =IF(ISBLANK(Computations!B31)," ",Computations!S31) ->  | H28: =IF(ISBLANK(Computations!B31)," ",Computations!I31) ->  | I28: =IF(ISBLANK(Computations!$B31)," ",Computations!J31) ->  | J28: =IF(ISBLANK(Computations!$B31)," ",Computations!AH30) ->  | K28: =IF(ISBLANK(Computations!$B31)," ",Computations!AA31) ->  | L28: =IF(ISBLANK(Computations!$B31)," ",Computations!V31) ->  | M28: =IF(ISBLANK(Computations!$B31)," ",Computations!L31) ->  | N28: =IF(ISBLANK(Computations!$B31)," ",Computations!T31) ->  | O28: =IF(ISBLANK(Computations!$B31)," ",M28/N28) ->  | P28: =IF(ISBLANK(Computations!$B31)," ",Computations!N31) ->  | Q28: =IF(ISBLANK(Computations!$B31)," ",Computations!AG31) ->  | R28: =IF(ISBLANK(Computations!$B31)," ",Computations!AH31) -> 
A29: =IF(ISBLANK(Computations!B32)," ",Computations!B32) ->  | B29: =IF(ISBLANK(Computations!C32)," ",Computations!C32) ->  | C29: =IF(ISBLANK(Computations!B32)," ",Computations!P32) ->  | D29: =IF(Computations!P32<=0," ",Computations!Q32/Computations!P32) ->  | E29: =IF(ISBLANK(Computations!B32)," ",MAX(5,Computations!H32)) ->  | F29: =IF(ISBLANK(Computations!B32)," ",Computations!R32) ->  | G29: =IF(ISBLANK(Computations!B32)," ",Computations!S32) ->  | H29: =IF(ISBLANK(Computations!B32)," ",Computations!I32) ->  | I29: =IF(ISBLANK(Computations!$B32)," ",Computations!J32) ->  | J29: =IF(ISBLANK(Computations!$B32)," ",Computations!AH31) ->  | K29: =IF(ISBLANK(Computations!$B32)," ",Computations!AA32) ->  | L29: =IF(ISBLANK(Computations!$B32)," ",Computations!V32) ->  | M29: =IF(ISBLANK(Computations!$B32)," ",Computations!L32) ->  | N29: =IF(ISBLANK(Computations!$B32)," ",Computations!T32) ->  | O29: =IF(ISBLANK(Computations!$B32)," ",M29/N29) ->  | P29: =IF(ISBLANK(Computations!$B32)," ",Computations!N32) ->  | Q29: =IF(ISBLANK(Computations!$B32)," ",Computations!AG32) ->  | R29: =IF(ISBLANK(Computations!$B32)," ",Computations!AH32) -> 
A30: =IF(ISBLANK(Computations!B33)," ",Computations!B33) ->  | B30: =IF(ISBLANK(Computations!C33)," ",Computations!C33) ->  | C30: =IF(ISBLANK(Computations!B33)," ",Computations!P33) ->  | D30: =IF(Computations!P33<=0," ",Computations!Q33/Computations!P33) ->  | E30: =IF(ISBLANK(Computations!B33)," ",MAX(5,Computations!H33)) ->  | F30: =IF(ISBLANK(Computations!B33)," ",Computations!R33) ->  | G30: =IF(ISBLANK(Computations!B33)," ",Computations!S33) ->  | H30: =IF(ISBLANK(Computations!B33)," ",Computations!I33) ->  | I30: =IF(ISBLANK(Computations!$B33)," ",Computations!J33) ->  | J30: =IF(ISBLANK(Computations!$B33)," ",Computations!AH32) ->  | K30: =IF(ISBLANK(Computations!$B33)," ",Computations!AA33) ->  | L30: =IF(ISBLANK(Computations!$B33)," ",Computations!V33) ->  | M30: =IF(ISBLANK(Computations!$B33)," ",Computations!L33) ->  | N30: =IF(ISBLANK(Computations!$B33)," ",Computations!T33) ->  | O30: =IF(ISBLANK(Computations!$B33)," ",M30/N30) ->  | P30: =IF(ISBLANK(Computations!$B33)," ",Computations!N33) ->  | Q30: =IF(ISBLANK(Computations!$B33)," ",Computations!AG33) ->  | R30: =IF(ISBLANK(Computations!$B33)," ",Computations!AH33) -> 
A31: =IF(ISBLANK(Computations!B34)," ",Computations!B34) ->  | B31: =IF(ISBLANK(Computations!C34)," ",Computations!C34) ->  | C31: =IF(ISBLANK(Computations!B34)," ",Computations!P34) ->  | D31: =IF(Computations!P34<=0," ",Computations!Q34/Computations!P34) ->  | E31: =IF(ISBLANK(Computations!B34)," ",MAX(5,Computations!H34)) ->  | F31: =IF(ISBLANK(Computations!B34)," ",Computations!R34) ->  | G31: =IF(ISBLANK(Computations!B34)," ",Computations!S34) ->  | H31: =IF(ISBLANK(Computations!B34)," ",Computations!I34) ->  | I31: =IF(ISBLANK(Computations!$B34)," ",Computations!J34) ->  | J31: =IF(ISBLANK(Computations!$B34)," ",Computations!AH33) ->  | K31: =IF(ISBLANK(Computations!$B34)," ",Computations!AA34) ->  | L31: =IF(ISBLANK(Computations!$B34)," ",Computations!V34) ->  | M31: =IF(ISBLANK(Computations!$B34)," ",Computations!L34) ->  | N31: =IF(ISBLANK(Computations!$B34)," ",Computations!T34) ->  | O31: =IF(ISBLANK(Computations!$B34)," ",M31/N31) ->  | P31: =IF(ISBLANK(Computations!$B34)," ",Computations!N34) ->  | Q31: =IF(ISBLANK(Computations!$B34)," ",Computations!AG34) ->  | R31: =IF(ISBLANK(Computations!$B34)," ",Computations!AH34) -> 
A32: =IF(ISBLANK(Computations!B35)," ",Computations!B35) ->  | B32: =IF(ISBLANK(Computations!C35)," ",Computations!C35) ->  | C32: =IF(ISBLANK(Computations!B35)," ",Computations!P35) ->  | D32: =IF(Computations!P35<=0," ",Computations!Q35/Computations!P35) ->  | E32: =IF(ISBLANK(Computations!B35)," ",MAX(5,Computations!H35)) ->  | F32: =IF(ISBLANK(Computations!B35)," ",Computations!R35) ->  | G32: =IF(ISBLANK(Computations!B35)," ",Computations!S35) ->  | H32: =IF(ISBLANK(Computations!B35)," ",Computations!I35) ->  | I32: =IF(ISBLANK(Computations!$B35)," ",Computations!J35) ->  | J32: =IF(ISBLANK(Computations!$B35)," ",Computations!AH34) ->  | K32: =IF(ISBLANK(Computations!$B35)," ",Computations!AA35) ->  | L32: =IF(ISBLANK(Computations!$B35)," ",Computations!V35) ->  | M32: =IF(ISBLANK(Computations!$B35)," ",Computations!L35) ->  | N32: =IF(ISBLANK(Computations!$B35)," ",Computations!T35) ->  | O32: =IF(ISBLANK(Computations!$B35)," ",M32/N32) ->  | P32: =IF(ISBLANK(Computations!$B35)," ",Computations!N35) ->  | Q32: =IF(ISBLANK(Computations!$B35)," ",Computations!AG35) ->  | R32: =IF(ISBLANK(Computations!$B35)," ",Computations!AH35) -> 
A33: =IF(ISBLANK(Computations!B36)," ",Computations!B36) ->  | B33: =IF(ISBLANK(Computations!C36)," ",Computations!C36) ->  | C33: =IF(ISBLANK(Computations!B36)," ",Computations!P36) ->  | D33: =IF(Computations!P36<=0," ",Computations!Q36/Computations!P36) ->  | E33: =IF(ISBLANK(Computations!B36)," ",MAX(5,Computations!H36)) ->  | F33: =IF(ISBLANK(Computations!B36)," ",Computations!R36) ->  | G33: =IF(ISBLANK(Computations!B36)," ",Computations!S36) ->  | H33: =IF(ISBLANK(Computations!B36)," ",Computations!I36) ->  | I33: =IF(ISBLANK(Computations!$B36)," ",Computations!J36) ->  | J33: =IF(ISBLANK(Computations!$B36)," ",Computations!AH35) ->  | K33: =IF(ISBLANK(Computations!$B36)," ",Computations!AA36) ->  | L33: =IF(ISBLANK(Computations!$B36)," ",Computations!V36) ->  | M33: =IF(ISBLANK(Computations!$B36)," ",Computations!L36) ->  | N33: =IF(ISBLANK(Computations!$B36)," ",Computations!T36) ->  | O33: =IF(ISBLANK(Computations!$B36)," ",M33/N33) ->  | P33: =IF(ISBLANK(Computations!$B36)," ",Computations!N36) ->  | Q33: =IF(ISBLANK(Computations!$B36)," ",Computations!AG36) ->  | R33: =IF(ISBLANK(Computations!$B36)," ",Computations!AH36) -> 
A35: INLET SPACING COMPUTATION SHEET

Sheet Lookup Tables
B3: DATA ON INLET GRATES (this data is used) | L3: DATA ON INLET GRATES (NO CLOGGING):
C5: Width | D5: Length | E5: Vo | M5: Width | N5: Length | O5: Vo
B6: Type | C6: (feet) | D6: (feet) | E6: (fps) | F6: Notes | L6: Type | M6: (feet) | N6: (feet) | O6: (fps)
B8: 3 | C8: 0.01 | D8: 2 | E8: 0.01 | F8: Side flow only
B9: 5 | C9: 1.7 | D9: =N9/2 -> 1.895 | E9: 5.63 | F9: model as clogged | L9: 5 | M9: 1.7 | N9: 3.79 | O9: 8.55 | P9: curved
B10: 6 | C10: 1.33 | D10: =N10/2 -> 1.5 | E10: 3.37 | F10: model as clogged | L10: 6 | M10: 1.33 | N10: 3 | O10: 5.72 | P10: reticuline
B11: 8 | C11: 1.13 | D11: 1.8 | E11: 5.54 | F11: has cub box | L11: 8 | M11: 1.13 | N11: 1.8 | O11: 5.54 | P11: curved
B12: 10 | C12: 1.13 | D12: 2.88 | E12: 7.33 | F12: has cub box | L12: 10 | M12: 1.13 | N12: 2.88 | O12: 7.33 | P12: curved
B13: 13 | C13: 1.4 | D13: =N13/2 -> 1.24 | E13: 2.87 | F13: model as clogged | L13: 13 | M13: 1.4 | N13: 2.48 | O13: 4.96 | P13: reticuline
B14: 14 | C14: 1.21 | D14: =N14/2 -> 2.46 | E14: 4.93 | F14: model as clogged | L14: 14 | M14: 1.21 | N14: 4.92 | O14: 8.36 | P14: reticuline
B15: 15 | C15: 1.7 | D15: 3.79 | E15: 8.58 | F15: has cub box | L15: 15 | M15: 1.7 | N15: 3.79 | O15: 8.58 | P15: curved
B16: OS | C16: 1.58 | D16: =N16/2 -> 0.835 | E16: 3.44 | F16: model as clogged | L16: OS | M16: 1.58 | N16: 1.67 | O16: 3.66 | P16: reticuline
B17: SQ | C17: 1.58 | D17: =N17/2 -> 0.79 | E17: 3.31 | F17: model as clogged | L17: SQ | M17: 1.58 | N17: 1.58 | O17: 3.5 | P17: reticuline
